fUST/lending_fUST_20240705
["ID","MTS","AMOUNT","RATE_DAILY","PERIOD"]
[331254758,1720161061225,-14357.76,0.00057534,120]
[331254759,1720161061234,-500.0,0.00057534,120]
[331254760,1720161061243,-500.0,0.00057534,120]
[331254761,1720161061252,-500.0,0.00057534,120]
[331254762,1720161061262,-500.0,0.00057534,120]
[331254763,1720161061272,-500.0,0.00057534,120]
[331254764,1720161061283,-500.0,0.00057534,120]
[331254765,1720161061292,-500.0,0.00057534,120]
[331254766,1720161061306,-500.0,0.00057534,120]
[331254767,1720161061316,-500.0,0.00057534,120]
[331254768,1720161061326,-500.0,0.00057534,120]
[331254769,1720161061335,-500.0,0.00057534,120]
[331254770,1720161061345,-1580.21,0.00057534,21]
[331254771,1720161061354,-307.2187865,0.00057534,60]
[331254772,1720161061364,-293.3096853,0.00057534,2]
[331254773,1720161061373,-153.0,0.00057534,2]
[331254774,1720161061385,-293.3096853,0.00057534,2]
[331254775,1720161061395,-153.0,0.00057534,2]
[331254776,1720161061405,-206.1408591,0.00057534,60]
[331254777,1720161061414,-293.3096853,0.00057534,2]
[331254778,1720161061423,-153.0,0.00057534,2]
[331254779,1720161061432,-206.1408591,0.00057534,60]
[331254780,1720161061441,-153.0,0.00057534,2]
[331254781,1720161061451,-206.1408591,0.00057534,60]
[331254782,1720161061460,-206.1408591,0.00057534,60]
[331254783,1720161061469,-206.1408591,0.00057534,60]
[331254784,1720161061478,-452.7007641,0.00057534,60]
[331254785,1720161061487,-674.6736057,0.00057534,2]
[331254786,1720161061496,-153.0,0.00057534,2]
[331254787,1720161061505,-153.0,0.00057534,2]
[331254788,1720161061517,-153.0,0.00057534,2]
[331254789,1720161061526,-153.0,0.00057534,2]
[331254790,1720161061536,-153.0,0.00057534,2]
[331254791,1720161061545,-153.6671116,0.00057534,2]
[331254792,1720161061554,-373.0,0.000576,37]
[331254793,1720161061564,-151.0,0.000576,55]
[331254794,1720161061573,-301.34616125,0.00057606,30]
[331254795,1720161061582,-300.0,0.00057658,30]
[331254796,1720161061592,-417.634928,0.00057693,2]
[331254797,1720161061601,-500.0,0.00057693,46]
[331254798,1720161061611,-233.236532,0.00057982,120]
[331254799,1720161061620,-500.0,0.00058082,120]
[331254800,1720161061629,-500.0,0.00058082,120]
[331254801,1720161061638,-500.0,0.00058082,120]
[331254802,1720161061648,-500.0,0.00058082,120]
[331254803,1720161061657,-509.53,0.00058082,120]
[331254804,1720161061666,-500.0,0.00058082,120]
[331254805,1720161061675,-500.0,0.00058082,120]
[331254806,1720161061684,-500.0,0.00058082,120]
[331254807,1720161061694,-521.55913624,0.00058082,120]
[331254808,1720161061703,-500.0,0.00058082,120]
[331254809,1720161061713,-500.0,0.00058082,120]
[331254810,1720161061723,-500.0,0.00058082,120]
[331254811,1720161061733,-500.0,0.00058082,120]
[331254812,1720161061745,-193.06,0.00058082,120]
[331254813,1720161061755,-500.0,0.00058082,120]
[331254814,1720161061769,-200.0,0.00058082,7]
[331254815,1720161061778,-500.0,0.00058082,120]
[331254816,1720161061787,-500.0,0.00058082,120]
[331254817,1720161061798,-500.0,0.00058082,120]
[331254818,1720161061807,-500.0,0.00058082,120]
[331254819,1720161061816,-500.0,0.00058082,120]
[331254820,1720161061826,-774.94,0.00058082,120]
[331254821,1720161061835,-500.0,0.00058082,120]
[331254822,1720161061844,-1040.79,0.00058082,120]
[331254823,1720161061853,-500.0,0.00058082,120]
[331254824,1720161061864,-500.0,0.00058082,120]
[331254825,1720161061873,-776.98,0.00058082,120]
[331254826,1720161061882,-500.0,0.00058082,120]
[331254827,1720161061892,-500.0,0.00058082,120]
[331254828,1720161061902,-500.0,0.00058082,120]
[331254829,1720161061911,-500.0,0.00058082,120]
[331254830,1720161061920,-151.0,0.00058082,120]
[331254831,1720161061930,-778.44,0.00058082,120]
[331254832,1720161061940,-1334.42,0.00058082,120]
[331254833,1720161061949,-500.0,0.00058082,120]
[331254834,1720161061961,-500.0,0.00058082,120]
[331254835,1720161061970,-500.0,0.00058082,120]
[331254836,1720161061980,-420.48304217,0.00058082,120]
[331254837,1720161062115,-79.51695783,0.00058082,120]
[331254838,1720161062125,-876.06,0.00058082,120]
[331254839,1720161062135,-500.0,0.00058082,120]
[331254840,1720161062145,-500.0,0.00058082,120]
[331254841,1720161062155,-500.0,0.00058082,120]
[331254842,1720161062164,-500.0,0.00058082,120]
[331254843,1720161062174,-151.0,0.00058082,120]
[331254844,1720161062294,-454.17427777,0.00058082,120]
[331254845,1720161062309,-500.0,0.00058082,120]
[331254846,1720161062318,-500.0,0.00058082,120]
[331254847,1720161062328,-780.42,0.00058082,120]
[331254848,1720161062338,-500.0,0.00058082,120]
[331254849,1720161062350,-983.03,0.00058082,120]
[331254850,1720161062360,-500.0,0.00058082,120]
[331254851,1720161062370,-500.0,0.00058082,120]
[331254852,1720161062382,-7842.55,0.00058082,120]
[331254853,1720161062392,-190.60409448,0.00058082,120]
[331254854,1720161062401,-500.0,0.00058082,120]
[331254855,1720161062411,-500.0,0.00058082,120]
[331254856,1720161062421,-500.0,0.00058082,120]
[331254857,1720161062430,-598.2279812,0.00058082,120]
[331254858,1720161062440,-500.0,0.00058082,120]
[331254859,1720161062449,-584.4,0.00058082,120]
[331254860,1720161062459,-500.0,0.00058082,120]
[331254861,1720161062469,-151.0,0.00058082,120]
[331254862,1720161062478,-500.0,0.00058082,120]
[331254863,1720161062490,-567.79333098,0.00058082,120]
[331254864,1720161062500,-500.0,0.00058082,120]
[331254865,1720161062510,-500.0,0.00058082,120]
[331254866,1720161062523,-670.8,0.00058082,120]
[331254867,1720161062533,-500.0,0.00058082,120]
[331254868,1720161062542,-500.0,0.00058082,120]
[331254869,1720161062552,-500.0,0.00058082,120]
[331254870,1720161062562,-500.0,0.00058082,120]
[331254871,1720161062571,-731.58,0.00058082,120]
[331254872,1720161062581,-500.0,0.00058082,120]
[331254873,1720161062591,-504.32,0.00058082,120]
[331254874,1720161062601,-667.14,0.00058082,120]
[331254875,1720161062610,-500.0,0.00058082,120]
[331254876,1720161062620,-500.0,0.00058082,120]
[331254877,1720161062630,-500.0,0.00058082,120]
[331254878,1720161062639,-3106.8,0.00058082,120]
[331254879,1720161062648,-808.47,0.00058082,120]
[331254880,1720161062658,-3479.45,0.00058082,120]
[331254881,1720161062668,-500.0,0.00058082,120]
[331254882,1720161062677,-500.0,0.00058082,120]
[331254883,1720161062687,-691.25,0.00058082,120]
[331254884,1720161062696,-151.0,0.00058082,120]
[331254885,1720161062706,-574.85,0.00058082,120]
[331254886,1720161062716,-500.0,0.00058082,120]
[331254887,1720161062725,-786.58,0.00058082,120]
[331254888,1720161062735,-500.0,0.00058082,120]
[331254889,1720161062746,-500.0,0.00058082,120]
[331254890,1720161062756,-500.0,0.00058082,120]
[331254891,1720161062768,-639.27,0.00058082,120]
[331254892,1720161062777,-500.0,0.00058082,120]
[331254893,1720161062787,-1949.52,0.00058082,120]
[331254894,1720161062796,-500.0,0.00058082,120]
[331254895,1720161062805,-3989.98,0.00058082,120]
[331254896,1720161062815,-1086.21,0.00058082,120]
[331254897,1720161062824,-500.0,0.00058082,120]
[331254898,1720161062835,-500.0,0.00058082,120]
[331254899,1720161062844,-500.0,0.00058082,120]
[331254900,1720161062855,-1842.02,0.00058082,120]
[331254901,1720161062864,-505.4,0.00058082,120]
[331254902,1720161062874,-500.0,0.00058082,120]
[331254903,1720161062886,-801.37,0.00058082,120]
[331254904,1720161062895,-500.0,0.00058082,120]
[331254905,1720161062906,-500.0,0.00058082,120]
[331254906,1720161062915,-500.0,0.00058082,120]
[331254907,1720161062924,-151.0,0.00058082,120]
[331254908,1720161062933,-500.0,0.00058082,120]
[331254909,1720161062943,-151.0,0.00058082,120]
[331254910,1720161062952,-4019.79,0.00058082,120]
[331254911,1720161062962,-151.0,0.00058082,120]
[331254912,1720161062972,-500.0,0.00058082,120]
[331254913,1720161062981,-151.0,0.00058082,120]
[331254914,1720161062991,-1092.71,0.00058082,120]
[331254915,1720161063000,-8334.57063005,0.00058082,120]
[331254916,1720161063015,-3527.51936995,0.00058082,120]
[331254917,1720161063025,-677.63,0.00058082,120]
[331254918,1720161063035,-500.0,0.00058082,120]
[331254919,1720161063044,-835.19918161,0.00058082,120]
[331254920,1720161063057,-1538.57081839,0.00058082,120]
[331254921,1720161063066,-500.0,0.00058082,120]
[331254922,1720161063076,-500.0,0.00058082,120]
[331254923,1720161063086,-710.01,0.00058082,120]
[331254924,1720161063096,-687.88,0.00058082,120]
[331254925,1720161063106,-500.0,0.00058082,120]
[331254926,1720161063115,-298.545718,0.00058082,120]
[331254927,1720161063125,-298.545718,0.00058082,120]
[331254928,1720161063134,-151.0,0.00058082,120]
[331254929,1720161063144,-151.0,0.00058082,120]
[331254930,1720161063154,-108.04774562,0.00058082,120]
[331254931,1720161063289,-2080.22225438,0.00058082,120]
[331254932,1720161063302,-930.67774546,0.00058082,120]
[331254933,1720161063402,-328.49838871,0.00058082,120]
[331254934,1720161063414,-541.91386583,0.00058082,120]
[331254935,1720161063425,-500.0,0.00058082,120]
[331254936,1720161063437,-500.0,0.00058082,120]
[331254937,1720161063447,-500.0,0.00058082,120]
[331254938,1720161063456,-1114.43,0.00058082,120]
[331254939,1720161063465,-500.0,0.00058082,120]
[331254940,1720161063475,-521.79,0.00058082,120]
[331254941,1720161063484,-206.27049393,0.00058082,120]
[331254942,1720161063494,-500.0,0.00058082,120]
[331254943,1720161063503,-500.0,0.00058082,120]
[331254944,1720161063512,-1349.02,0.00058082,120]
[331254945,1720161063526,-500.0,0.00058082,120]
[331254946,1720161063535,-500.0,0.00058082,120]
[331254947,1720161063545,-1279.0,0.00058082,120]
[331254948,1720161063554,-803.11,0.00058082,120]
[331254949,1720161063564,-859.99,0.00058082,120]
[331254950,1720161063573,-500.0,0.00058082,120]
[331254951,1720161063583,-500.0,0.00058082,120]
[331254952,1720161063593,-2024.24,0.00058082,120]
[331254953,1720161063602,-1069.58,0.00058082,120]
[331254954,1720161063612,-298.948104,0.00058082,120]
[331254955,1720161063623,-10664.38,0.00058082,120]
[331254956,1720161063634,-4002.1,0.00058082,120]
[331254957,1720161063643,-14357.76,0.00058082,120]
[331254958,1720161063653,-500.0,0.00058082,120]
[331254959,1720161063663,-500.0,0.00058082,120]
[331254960,1720161063672,-547.4367789,0.00058082,120]
[331254961,1720161063682,-500.0,0.00058082,120]
[331254962,1720161063695,-500.0,0.00058082,120]
[331254963,1720161063709,-500.0,0.00058082,120]
[331254964,1720161063724,-500.0,0.00058082,120]
[331254965,1720161063741,-500.0,0.00058082,120]
[331254966,1720161063754,-500.0,0.00058082,120]
[331254967,1720161063767,-500.81,0.00058082,120]
[331254968,1720161063781,-500.0,0.00058082,120]
[331254969,1720161063795,-1580.21,0.00058082,21]
[331254970,1720161063808,-151.0,0.00058411,120]
[331254971,1720161063821,-200.0,0.0005863,7]
[331254972,1720161063836,-500.0,0.0005863,120]
[331254973,1720161063849,-500.0,0.0005863,120]
[331254974,1720161063864,-500.0,0.0005863,120]
[331254975,1720161063880,-308.96521884,0.0005863,120]
[331254976,1720161063956,-878.92675256,0.00034517,4]
[331254977,1720161063973,-961.81211323,0.00034517,4]
[331254989,1720161293900,397.62940615,9.999e-05,2]
[331254992,1720161398023,212.31639303,9.999e-05,2]
[331255014,1720161940632,158.17104006,9.999e-05,2]
[331255015,1720161950526,574.1884159,9.999e-05,2]
[331255016,1720161956593,158.17104006,9.999e-05,2]
[331255019,1720162025121,-169.40391624,0.0001212,2]
[331255020,1720162025144,-227.899792,0.00013879,2]
[331255021,1720162025166,-2754.8782979,0.00014338,2]
[331255022,1720162025188,-151.0,0.000145,2]
[331255023,1720162025284,-689.41092756,0.00014899,2]
[331255024,1720162026135,-799.77485041,0.00014899,2]
[331255025,1720162026158,-193.95387146,0.000149,2]
[331255026,1720162026179,-193.95387146,0.000149,2]
[331255027,1720162026201,-193.95387146,0.000149,2]
[331255028,1720162026224,-500.0,0.00014997,2]
[331255029,1720162026248,-334.01314852,0.00014997,2]
[331255030,1720162046119,-165.98685148,0.00014997,2]
[331255031,1720162046141,-500.0,0.00014997,2]
[331255032,1720162046162,-273.39975296,0.00014997,2]
[331255033,1720162046182,-236.8984549,0.00014998,2]
[331255034,1720162048092,-843.33907785,0.00014998,2]
[331255035,1720162048114,-450.84076868,0.00014998,2]
[331255049,1720162233498,-1558.72276708,0.00014998,2]
[331255053,1720162233510,-7605.66738955,0.00014998,2]
[331255057,1720162233520,-3731.90160832,0.00014998,2]
[331255162,1720162240027,-842.05662477,0.00014998,2]
[331255164,1720162240040,-12673.84743113,0.00014998,2]
[331255165,1720162240050,-1500.0,0.00014999,2]
[331255167,1720162240061,-1463.4054225,0.00014999,2]
[331255169,1720162240071,-1915.88692297,0.00014999,2]
[331255171,1720162240081,-2118.54298063,0.00014999,2]
[331255173,1720162240091,-1434.5963251,0.00014999,2]
[331255175,1720162240101,-4711.13030053,0.00014999,2]
[331255176,1720162240110,-3078.85157566,0.00014999,2]
[331255177,1720162240120,-2429.76814067,0.00014999,2]
[331255178,1720162240130,-2364.40066571,0.00015,2]
[331255179,1720162240140,-1104.74204561,0.00015,2]
[331255180,1720162240150,-404.43491923,0.00015,2]
[331255181,1720162240162,-17273.34004538,0.00015,2]
[331255182,1720162240172,-490.93235365,0.00015995,2]
[331255183,1720162240183,-3998.51654249,0.00016245,2]
[331255184,1720162240193,-500.0,0.00016254,2]
[331255185,1720162240203,-155.84834013,0.00016254,2]
[331255186,1720162240213,-205.01623855,0.00016254,2]
[331255187,1720162240223,-188.57674829,0.00016254,2]
[331255188,1720162240232,-30000.0,0.00016255,2]
[331255190,1720162240242,-34932.27430829,0.00016255,2]
[331255191,1720162240251,-166.666666,0.00016438,2]
[331255193,1720162240261,-388.4397027,0.000165,2]
[331255195,1720162240270,-166.666666,0.00016823,2]
[331255197,1720162240280,-166.666666,0.00017208,2]
[331255199,1720162240290,-166.666666,0.00017592,2]
[331255201,1720162240300,-166.666666,0.00017977,2]
[331255203,1720162240309,-166.666666,0.00018362,2]
[331255205,1720162240318,-812.31944159,0.00019,3]
[331255207,1720162240327,-250.0,0.00019041,2]
[331255209,1720162240336,-159.47686,0.00019178,2]
[331255211,1720162240346,-158.01056625,0.00019764,2]
[331255213,1720162240356,-3998.51654249,0.0001979,2]
[331255215,1720162240366,-52100.07365113,0.000198,2]
[331255217,1720162240376,-150.0,0.00019864,2]
[331255219,1720162240385,-3998.51654249,0.0001999,2]
[331255221,1720162240395,-6493.61146198,0.0002,2]
[331255223,1720162240406,-225.53942994,0.0002,2]
[331255225,1720162240416,-1116.9418809,0.0002,2]
[331255227,1720162240426,-4172.94461587,0.0002,2]
[331255229,1720162240435,-427.95620224,0.0002,2]
[331255231,1720162240447,-400.0,0.00020412,2]
[331255233,1720162240463,-182.85147234,0.00022,2]
[331255235,1720162240473,-879.23230837,0.0002217,2]
[331255237,1720162240483,-200.0,0.00024658,15]
[331255239,1720162240493,-189.04078712,0.00025,2]
[331255241,1720162240503,-2230.36381706,0.000268,60]
[331255243,1720162240512,-235.33275104,0.000274,2]
[331255245,1720162240522,-620.00160707,0.00027647,2]
[331255247,1720162240531,-268.30367969,0.00028,2]
[331255249,1720162240542,-1634.75488436,0.00029803,2]
[331255251,1720162240552,-504.49555993,0.00029852,2]
[331255253,1720162240562,-284.22582068,0.0003,3]
[331255255,1720162240572,-471.27760912,0.0003,4]
[331255257,1720162240582,-1083.96769639,0.00031,120]
[331255259,1720162240591,-158.01056622,0.00031407,2]
[331255261,1720162240601,-256.53141225,0.00033292,2]
[331255263,1720162240610,-159.47686,0.00034399,2]
[331255265,1720162240620,-1025.42362351,0.00034517,4]
[331255267,1720162240629,-3393.13836225,0.0003458,2]
[331255269,1720162240638,-2316.79226907,0.0003463,4]
[331255271,1720162240648,-2699.93975309,0.00034672,4]
[331255273,1720162240660,-155.04482031,0.00035292,4]
[331255275,1720162240670,-642.76758109,0.00036239,4]
[331255277,1720162240681,-264.86125261,0.00037259,2]
[331255279,1720162240692,-393.89323921,0.00037807,4]
[331255281,1720162240701,-200.0,0.00038723,120]
[331255283,1720162240711,-154.79103211,0.000392,10]
[331255285,1720162240726,-150.5,0.0003997,62]
[331255287,1720162240735,-150.5,0.0003998,62]
[331255289,1720162240750,-3990.00210664,0.0003999,4]
[331255291,1720162240759,-7997.03308498,0.0003999,5]
[331255293,1720162240770,-150.5,0.0003999,62]
[331255295,1720162240780,-1000.0,0.0004,120]
[331255297,1720162240790,-22995.03952073,0.0004,120]
[331255299,1720162240800,-30409.38165568,0.0004,30]
[331255301,1720162240810,-25380.23808094,0.0004,120]
[331255303,1720162240819,-151.0,0.0004,120]
[331255305,1720162240829,-151.0,0.0004,120]
[331255307,1720162240839,-151.0,0.00041918,120]
[331255309,1720162240848,-158.01056622,0.00043051,2]
[331255311,1720162240858,-151.0,0.00043342,120]
[331255313,1720162240870,-3809.2136136,0.000438,60]
[331255315,1720162240880,-151.0,0.00043836,120]
[331255317,1720162240890,-523.5,0.00044,120]
[331255319,1720162240900,-7997.03308498,0.0004489,5]
[331255321,1720162240910,-88888.0,0.000449,5]
[331255323,1720162240920,-3998.51654249,0.0004499,5]
[331255325,1720162240929,-59182.13022081,0.00045,120]
[331255327,1720162240939,-151.0,0.00045753,120]
[331255329,1720162240949,-15994.06617,0.0004599,5]
[331255331,1720162240958,-158074.80522792,0.00046,60]
[331255334,1720162240978,-151.0,0.00046685,120]
[331255335,1720162240988,-151.0,0.00047671,120]
[331255337,1720162240999,-35544.27588912,0.00048798,2]
[331255339,1720162241008,-153.0,0.00049288,120]
[331255341,1720162241018,-153.0,0.00049288,120]
[331255343,1720162241028,-153.0,0.00049288,120]
[331255344,1720162241037,-153.0,0.00049288,120]
[331255346,1720162241047,-153.0,0.00049288,120]
[331255347,1720162241056,-153.0,0.00049288,120]
[331255348,1720162241066,-153.0,0.00049288,120]
[331255350,1720162241076,-153.0,0.00049288,120]
[331255351,1720162241085,-153.0,0.00049288,120]
[331255353,1720162241095,-153.0,0.00049288,120]
[331255354,1720162241104,-153.0,0.00049288,120]
[331255356,1720162241114,-153.0,0.00049288,120]
[331255357,1720162241123,-153.0,0.00049288,120]
[331255358,1720162241132,-153.0,0.00049288,120]
[331255360,1720162241142,-153.0,0.00049288,120]
[331255361,1720162241151,-153.0,0.00049288,120]
[331255363,1720162241164,-153.0,0.00049288,120]
[331255364,1720162241174,-153.0,0.00049288,120]
[331255366,1720162241186,-153.0,0.00049288,120]
[331255367,1720162241195,-153.0,0.00049288,120]
[331255369,1720162241205,-153.0,0.00049288,120]
[331255371,1720162241215,-153.0,0.00049288,120]
[331255372,1720162241224,-153.0,0.00049288,120]
[331255374,1720162241234,-153.0,0.00049288,120]
[331255375,1720162241243,-153.0,0.00049288,120]
[331255377,1720162241253,-153.0,0.00049288,120]
[331255378,1720162241262,-153.0,0.00049288,120]
[331255380,1720162241272,-153.0,0.00049288,120]
[331255381,1720162241282,-153.0,0.00049288,120]
[331255383,1720162241291,-153.0,0.00049288,120]
[331255384,1720162241300,-153.0,0.00049288,120]
[331255386,1720162241309,-153.0,0.00049288,120]
[331255388,1720162241318,-153.0,0.00049288,120]
[331255389,1720162241328,-153.0,0.00049288,120]
[331255392,1720162241337,-153.0,0.00049288,120]
[331255393,1720162241347,-153.0,0.00049288,120]
[331255396,1720162241356,-153.0,0.00049288,120]
[331255398,1720162241366,-153.0,0.00049288,120]
[331255399,1720162241376,-153.0,0.00049288,120]
[331255400,1720162241386,-153.0,0.00049288,120]
[331255402,1720162241395,-999.0,0.00049315,120]
[331255404,1720162241407,-600.0,0.00049315,120]
[331255405,1720162241417,-400.0,0.00049315,120]
[331255407,1720162241427,-999.0,0.00049589,120]
[331255408,1720162241436,-151.0,0.00049589,120]
[331255410,1720162241446,-159.47686,0.0004962,2]
[331255412,1720162241455,-999.0,0.00049863,120]
[331255413,1720162241465,-1237.47670112,0.0004999,6]
[331255513,1720162243779,-356.019951,0.00021096,2]
[331255514,1720162243789,-356.019951,0.00027195,2]
[331255515,1720162243799,-356.019951,0.00033295,2]
[331255516,1720162243810,-356.019951,0.00039394,2]
[331255517,1720162243820,-356.019951,0.00045494,2]
[331255518,1720162243830,-1834.26056847,0.0004999,6]
[331255519,1720162243843,-4925.29581539,0.0004999,6]
[331255520,1720162243852,-4308.03496036,0.0005,60]
[331255521,1720162243862,-154.82195475,0.0005,30]
[331255522,1720162243872,-358.11187778,0.0005,120]
[331255523,1720162243885,-641.88812222,0.0005,120]
[331255524,1720162243895,-14179.45843308,0.0005,120]
[331255532,1720162243983,-1999.5,0.0005,120]
[331255554,1720162245886,-5522.12,0.0004999,3]
[331255556,1720162245896,-3958.85172154,0.0005,120]
[331255597,1720162247780,-393.89323921,0.00037807,4]
[331255600,1720162247791,-153.0,0.00049288,120]
[331255604,1720162247801,-71688.54423638,0.0005,120]
[331255607,1720162247812,-151.0,0.00050027,120]
[331255611,1720162247823,-3998.51654249,0.00050126,6]
[331255614,1720162247832,-999.0,0.00050136,120]
[331255616,1720162247842,-999.0,0.0005041,120]
[331255618,1720162247852,-999.0,0.00050684,120]
[331255638,1720162248015,-999.0,0.00050958,120]
[331255640,1720162248025,-844.08,0.00051232,120]
[331255641,1720162248035,-151.0,0.00051507,120]
[331255643,1720162248045,-356.019951,0.00051593,2]
[331255644,1720162248055,-2977.93008937,0.00052,120]
[331255646,1720162248066,-151.0,0.0005337,120]
[331255648,1720162248078,-151.0,0.00053425,120]
[331255650,1720162248089,-6373.20958899,0.000545,120]
[331255758,1720163232134,-1410.15567786,0.00013998,2]
[331255759,1720163232169,-923.31090214,0.00013998,2]
[331255760,1720163232192,-1323.531538,0.00014157,2]
[331255761,1720163232215,-1467.23350588,0.00014897,2]
[331255762,1720163232238,-300.0,0.00014995,2]
[331255763,1720163232260,-197.0,0.00014995,2]
[331255764,1720163232283,-500.0,0.00014996,2]
[331255765,1720163232306,-400.73987638,0.00014996,2]
[331255766,1720163232328,-500.0,0.00014996,2]
[331255767,1720163232349,-489.2370432,0.00014996,2]
[331255768,1720163232370,-162.10002085,0.00014996,2]
[331255769,1720163232396,-6981.98564229,0.00014998,2]
[331255770,1720163232417,-2745.55933259,0.00014998,2]
[331255771,1720163239125,-1422.05260693,0.00014998,2]
[331255843,1720163433068,-300.0,0.00014781,2]
[331255845,1720163433077,-2.0,0.00014782,2]
[331255861,1720163433225,-1251.47792908,0.00014782,2]
[331255891,1720163438967,-9134.68342332,0.00014782,2]
[331255893,1720163438985,-1539.81426106,0.00014998,2]
[331255896,1720163439000,-284.26271461,0.00014998,2]
[331255898,1720163439010,-6981.98564229,0.00014998,2]
[331255900,1720163439020,-3130.40828598,0.00014999,4]
[331255902,1720163439031,-2132.69930736,0.00014999,2]
[331255904,1720163439041,-789.859108,0.00014999,2]
[331255906,1720163439054,-1137.547486,0.00015631,2]
[331255908,1720163439065,-583.79348247,0.00016155,2]
[331255910,1720163439076,-21777.3883298,0.00016244,2]
[331255912,1720163439086,-7259.12944326,0.00016245,2]
[331255914,1720163439097,-375.49715664,0.00016251,2]
[331255916,1720163439108,-500.0,0.00016251,2]
[331255918,1720163439120,-500.0,0.00016251,2]
[331255920,1720163439134,-419.26310918,0.00016251,2]
[331255922,1720163439145,-500.0,0.00016251,2]
[331255924,1720163439156,-500.0,0.00016251,2]
[331255926,1720163439168,-500.0,0.00016251,2]
[331255928,1720163439179,-500.0,0.00016251,2]
[331255930,1720163439190,-500.0,0.00016251,2]
[331255932,1720163439201,-500.0,0.00016251,2]
[331255934,1720163439214,-500.0,0.00016251,2]
[331255936,1720163439226,-500.0,0.00016251,2]
[331255938,1720163439237,-500.0,0.00016251,2]
[331255940,1720163439248,-500.0,0.00016251,2]
[331255942,1720163439258,-438.21561433,0.00016251,2]
[331255944,1720163439269,-185.02150788,0.00016251,2]
[331255946,1720163439279,-500.0,0.00016251,2]
[331255948,1720163439290,-500.0,0.00016251,2]
[331255950,1720163439303,-500.0,0.00016251,2]
[331255952,1720163439314,-500.0,0.00016251,2]
[331255954,1720163439325,-500.0,0.00016251,2]
[331255956,1720163439335,-500.0,0.00016251,2]
[331255958,1720163439346,-500.0,0.00016251,2]
[331255960,1720163439356,-500.0,0.00016251,2]
[331255962,1720163439367,-500.0,0.00016251,2]
[331255965,1720163439378,-500.0,0.00016251,2]
[331255966,1720163439389,-500.0,0.00016251,2]
[331255968,1720163439399,-500.0,0.00016251,2]
[331255970,1720163439410,-500.0,0.00016251,2]
[331255972,1720163439420,-500.0,0.00016251,2]
[331255974,1720163439431,-500.0,0.00016251,2]
[331255976,1720163439442,-500.0,0.00016251,2]
[331255978,1720163439452,-500.0,0.00016251,2]
[331255980,1720163439462,-500.0,0.00016251,2]
[331255982,1720163439473,-500.0,0.00016251,2]
[331255984,1720163439483,-500.0,0.00016251,2]
[331255986,1720163439493,-500.0,0.00016251,2]
[331255988,1720163439503,-500.0,0.00016251,2]
[331255990,1720163439513,-500.0,0.00016251,2]
[331255992,1720163439524,-500.0,0.00016251,2]
[331255994,1720163439536,-500.0,0.00016251,2]
[331255996,1720163439549,-500.0,0.00016251,2]
[331255998,1720163439560,-500.0,0.00016251,2]
[331256000,1720163439571,-500.0,0.00016251,2]
[331256003,1720163439586,-500.0,0.00016251,2]
[331256005,1720163439598,-500.0,0.00016251,2]
[331256007,1720163439610,-500.0,0.00016251,2]
[331256009,1720163439620,-500.0,0.00016251,2]
[331256011,1720163439631,-500.0,0.00016251,2]
[331256013,1720163439642,-500.0,0.00016251,2]
[331256015,1720163439653,-500.0,0.00016251,2]
[331256017,1720163439664,-57214.94712358,0.00016254,2]